bitfinex-derivatives/quotes_BTCF0:USTF0_20250309
["timestamp","ask_amount","ask_price","bid_price","bid_amount"]
[1741561677097,0.38057631,80109.0,80106.0,0.00012667]
[1741561677495,0.38057631,80109.0,80107.0,0.12483147]
[1741561677991,0.53057631,80109.0,80107.0,0.12483147]
[1741561678195,0.3608,80108.0,80106.0,0.00012667]
[1741561678495,0.53057631,80109.0,80108.0,0.01906335]
[1741561678695,0.27387631,80109.0,80108.0,0.01906335]
[1741561678892,0.27387631,80109.0,80108.0,0.14389482]
[1741561678893,0.12387631,80109.0,80108.0,0.14389482]
[1741561679097,0.27387631,80109.0,80108.0,0.14389482]
[1741561679397,0.27387631,80109.0,80108.0,0.01906335]
[1741561679791,0.27387631,80109.0,80100.0,0.00018728]
[1741561679989,0.3608,80101.0,80081.0,0.2511]
[1741561680193,0.3608,80101.0,80080.0,0.01195004]
[1741561680194,0.3608,80087.0,80080.0,0.01195004]
[1741561680390,0.3608,80081.0,80080.0,0.01195004]
[1741561680594,0.41248,80086.0,80081.0,0.12483693]
[1741561680800,0.21964,80086.0,80085.0,0.4856773]
[1741561681004,0.00018728,80094.0,80085.0,0.4856773]
[1741561681298,0.2179,80103.0,80093.0,0.3608]
[1741561681499,0.21977389,80104.0,80094.0,0.494]
[1741561681700,0.21964,80105.0,80102.0,0.3608]
[1741561681891,0.00064,80116.0,80104.0,0.1248476]
[1741561682199,0.21964,80149.0,80106.0,0.3608]
[1741561682404,0.21964,80149.0,80105.0,0.68644]
[1741561682405,0.21964,80149.0,80138.0,0.3608]
[1741561682699,0.3608,80139.0,80138.0,0.00918386]
[1741561682900,0.36738573,80148.0,80120.0,0.3608]
[1741561683107,0.17618973,80148.0,80147.0,9.97e-05]
[1741561683300,0.000104,80148.0,80147.0,9.97e-05]
[1741561683706,0.17607455,80149.0,80147.0,0.04043345]
[1741561684004,0.1324051,80149.0,80147.0,0.1559177]
[1741561684307,0.00187241,80157.0,80148.0,0.29143404]
[1741561684607,0.06476415,80159.0,80148.0,0.29143404]
[1741561684909,0.0210947,80159.0,80158.0,0.03103404]
[1741561685694,0.00012698,80164.0,80158.0,0.15579465]
[1741561685892,0.1,80200.0,80158.0,0.15579465]
[1741561685893,0.13239757,80176.0,80162.0,0.3608]
[1741561686106,0.08872812,80176.0,80170.0,0.3608]
[1741561686304,0.32976596,80174.0,80171.0,0.5119]
[1741561686495,0.08872812,80176.0,80171.0,0.5119]
[1741561686897,0.3608,80174.0,80171.0,0.5119]
[1741561687105,0.08872812,80173.0,80155.0,0.3608]
[1741561687405,0.08872812,80155.0,80110.0,0.3608]
[1741561687608,0.4259708,80120.0,80117.0,0.2556]
[1741561687809,0.3608,80140.0,80119.0,0.3608]
[1741561687810,0.19052,80122.0,80119.0,0.3608]
[1741561688107,0.4259708,80140.0,80119.0,0.3608]
[1741561688108,0.4259708,80140.0,80120.0,0.5189]
[1741561688310,0.08872812,80139.0,80133.0,0.3608]
[1741561688500,0.08891487,80138.0,80134.0,0.5189]
[1741561688704,0.2196,80154.0,80137.0,0.02887899]
[1741561688907,0.18984,80158.0,80137.0,0.02887899]
[1741561688908,0.55064,80168.0,80153.0,0.3608]
[1741561689107,0.14617055,80168.0,80167.0,0.3608]
[1741561689299,0.21956,80174.0,80167.0,0.02887899]
[1741561689499,0.21956,80174.0,80167.0,0.03837521]
[1741561689698,0.21956,80174.0,80168.0,0.5189]
[1741561689906,0.21956,80174.0,80173.0,0.02887899]
[1741561690409,0.36956,80174.0,80173.0,0.02877305]
[1741561690706,0.62668812,80174.0,80162.0,0.00018715]
[1741561690905,0.3608,80163.0,80162.0,0.00965661]
[1741561691098,0.47668812,80174.0,80162.0,0.00965661]
[1741561691397,0.47668812,80174.0,80162.0,0.13439466]
[1741561691598,0.47668812,80174.0,80163.0,0.2573]
[1741561692198,0.47668812,80174.0,80170.0,0.3608]
[1741561692199,0.36375043,80174.0,80170.0,0.3608]
[1741561692405,0.32010086,80174.0,80171.0,0.2573]
[1741561692908,0.27645129,80174.0,80172.0,0.12473727]
[1741561693213,0.18708,80188.0,80173.0,0.00015899]
[1741561693413,0.5259708,80200.0,80179.0,0.3608]
[1741561693708,0.5259708,80200.0,80186.0,0.3608]
[1741561693908,0.05635043,80200.0,80199.0,0.3608]
[1741561694308,0.01270086,80200.0,80199.0,0.3608]
[1741561694506,0.4259708,80210.0,80199.0,0.48549916]
[1741561695009,0.1906,80229.0,80209.0,0.3608]
[1741561695214,0.19064,80239.0,80232.0,0.3608]
[1741561695411,0.14763043,80239.0,80233.0,0.2615]
[1741561695613,0.00010104,80236.0,80227.0,0.00018703]
[1741561695805,0.00010104,80236.0,80234.0,0.12468128]
[1741561696004,0.14763043,80239.0,80235.0,0.2556]
[1741561696408,0.1914,80238.0,80236.0,0.12463388]
[1741561696608,0.3184,80238.0,80227.0,0.00018703]
[1741561696917,0.3184,80238.0,80225.0,0.00013515]
[1741561696918,0.7216,80228.0,80225.0,0.00013515]
[1741561697313,0.3608,80233.0,80226.0,0.12463777]
[1741561697807,0.3608,80233.0,80225.0,0.00013515]
[1741561698002,0.31718536,80233.0,80225.0,0.00013515]
[1741561698208,0.2413,80232.0,80225.0,0.00013515]
[1741561698606,0.06572812,80231.0,80225.0,0.00013515]
[1741561698809,0.3608,80226.0,80210.0,0.00929926]
[1741561699106,0.21572812,80231.0,80190.0,0.3608]
[1741561699107,0.3608,80211.0,80195.0,0.2574]
[1741561699305,0.40928,80210.0,80195.0,0.2574]
[1741561699614,0.40928,80210.0,80208.0,0.3608]
[1741561699615,0.79163616,80210.0,80208.0,0.3608]
[1741561699812,0.79163616,80210.0,80209.0,0.25755744]
[1741561699813,0.17582536,80210.0,80209.0,0.25755744]
[1741561700015,0.49301072,80210.0,80209.0,0.25755744]
[1741561700214,0.49301072,80210.0,80209.0,0.00015744]
[1741561700418,0.19793884,80210.0,80209.0,0.00015744]
[1741561700615,0.1896,80212.0,80209.0,0.12483095]
[1741561700913,0.14598536,80212.0,80210.0,0.2574]
[1741561701105,0.10237072,80212.0,80210.0,0.2574]
[1741561701513,0.10237072,80212.0,80209.0,0.00015744]
[1741561701514,0.3608,80211.0,80209.0,0.00015744]
[1741561701811,0.06572812,80210.0,80201.0,0.00018703]
[1741561702114,0.3608,80202.0,80201.0,0.00018703]
[1741561702306,0.53658536,80202.0,80201.0,0.00018703]
[1741561702510,0.2194,80202.0,80201.0,0.00018703]
[1741561702816,0.13217072,80202.0,80201.0,0.00018703]
[1741561703113,0.14406536,80215.0,80201.0,0.48566675]
[1741561703315,0.14406536,80215.0,80210.0,0.3608]
[1741561703517,0.00018703,80217.0,80211.0,0.882]
[1741561703705,0.2194,80222.0,80211.0,0.882]
[1741561703706,0.17597239,80222.0,80211.0,0.882]
[1741561703906,0.7216,80217.0,80201.0,0.00018703]
[1741561704113,0.3608,80207.0,80201.0,0.00018703]
[1741561704415,0.17597239,80222.0,80206.0,0.7216]
[1741561704617,0.4259708,80220.0,80213.0,0.3608]
[1741561704817,0.4259708,80220.0,80214.0,0.2597]
[1741561705122,0.4259708,80220.0,80215.0,0.2615]
[1741561705416,0.08892974,80222.0,80215.0,0.2615]
[1741561705720,0.08892974,80222.0,80216.0,0.12466185]
[1741561706215,0.08892974,80222.0,80221.0,0.3608]
[1741561706419,0.04531178,80222.0,80221.0,0.3608]
[1741561706622,0.00169382,80222.0,80221.0,0.3608]
[1741561706809,0.00018663,80222.0,80221.0,0.4854656]
[1741561707012,0.28508812,80249.0,80224.0,0.1246599]
[1741561707217,0.28508812,80249.0,80236.0,0.7216]
[1741561707615,0.28508812,80249.0,80236.0,0.84625486]
[1741561708312,0.28508812,80249.0,80228.0,0.00018703]
[1741561708313,0.42663698,80237.0,80235.0,0.00955606]
[1741561708619,0.85052812,80236.0,80228.0,0.00018703]
[1741561708816,0.3608,80229.0,80223.0,0.0093766]
[1741561709016,0.3608,80229.0,80208.0,0.3608]
[1741561709017,0.4854587,80226.0,80208.0,0.00917098]
[1741561709217,0.3608,80213.0,80207.0,0.2623]
[1741561709417,0.3608,80213.0,80181.0,0.3608]
[1741561709418,0.70908812,80212.0,80181.0,0.3608]
[1741561709618,0.4259708,80208.0,80198.0,0.00962415]
[1741561709922,0.3608,80201.0,80198.0,0.00014193]
[1741561710131,0.424,80200.0,80198.0,0.00014193]
[1741561710318,0.06572812,80199.0,80182.0,0.00942427]
[1741561710518,0.06572812,80199.0,80173.0,0.5214]
[1741561710519,0.3608,80190.0,80173.0,0.5214]
[1741561710721,0.3608,80178.0,80173.0,0.5214]
[1741561711017,0.21936,80177.0,80173.0,0.5214]
[1741561711220,0.00064,80189.0,80174.0,0.12468905]
[1741561711519,0.00018703,80190.0,80188.0,0.3608]
[1741561711819,0.42615783,80190.0,80189.0,0.5029]
[1741561712012,0.2449,80199.0,80189.0,0.5029]
[1741561712211,0.2219,80199.0,80189.0,0.62762638]
[1741561712917,0.60235284,80200.0,80195.0,0.3608]
[1741561713116,0.60235284,80200.0,80189.0,0.62762638]
[1741561713117,0.60171284,80200.0,80196.0,0.5029]
[1741561713317,0.60171284,80200.0,80190.0,0.00018703]
[1741561713515,0.1685,80199.0,80190.0,0.00018703]
[1741561714124,0.06572812,80198.0,80190.0,0.00018703]
[1741561714728,0.1686,80197.0,80190.0,0.00018703]
[1741561714911,0.3608,80194.0,80190.0,0.00018703]
[1741561715223,0.23432812,80193.0,80175.0,0.00011619]
[1741561715417,0.3608,80178.0,80175.0,0.00011619]
[1741561715611,0.41700812,80177.0,80175.0,0.00011619]
[1741561715812,0.42652812,80176.0,80138.0,0.3608]
[1741561716013,0.06572812,80175.0,80156.0,0.3608]
[1741561716217,0.21936,80174.0,80157.0,0.2429]
[1741561716423,0.21954703,80174.0,80166.0,0.3608]
[1741561716619,0.17590613,80174.0,80167.0,0.4955]
[1741561716818,0.13226523,80174.0,80172.0,0.00012373]
[1741561717123,0.00010459,80173.0,80172.0,0.00012373]
[1741561717319,0.47893271,80173.0,80172.0,0.00012373]
[1741561717524,0.62893271,80173.0,80172.0,0.00012373]
[1741561717720,0.47893271,80173.0,80172.0,0.00012373]
[1741561718118,0.06583271,80173.0,80172.0,0.00012373]
[1741561718423,0.13226523,80174.0,80172.0,0.124854]
[1741561718630,0.11080126,80174.0,80173.0,0.5034]
[1741561718818,0.06715292,80174.0,80173.0,0.5034]
[1741561719019,0.02350458,80174.0,80173.0,0.5034]
[1741561719220,0.00031411,80174.0,80173.0,0.62813104]
[1741561719527,0.16154332,80176.0,80173.0,0.63760303]
[1741561719721,0.16154332,80176.0,80173.0,0.51287199]
[1741561719916,0.13854332,80176.0,80173.0,0.51287199]
[1741561720123,0.4248,80175.0,80173.0,0.00947199]
[1741561720325,0.4248,80175.0,80158.0,0.5203]
[1741561720326,0.5787,80174.0,80158.0,0.5203]
[1741561720627,0.3608,80163.0,80158.0,0.5203]
[1741561720822,0.31715166,80163.0,80159.0,0.12472793]
[1741561721025,0.4259708,80167.0,80162.0,0.3608]
[1741561721228,0.00012514,80169.0,80163.0,0.60921288]
[1741561721528,0.18012,80178.0,80164.0,0.04479796]
[1741561721720,0.13647166,80178.0,80171.0,0.3608]
[1741561721920,0.13647166,80178.0,80172.0,0.55219796]
[1741561722116,0.13647166,80178.0,80173.0,0.04479796]
[1741561722316,0.13647166,80178.0,80174.0,0.04479796]
[1741561722520,0.00010704,80177.0,80175.0,0.04479796]
[1741561722729,0.00010704,80177.0,80176.0,0.04479796]
[1741561723517,0.09293036,80178.0,80176.0,0.16952278]
[1741561723717,0.4259708,80180.0,80177.0,0.04479796]
[1741561724028,0.53986703,80182.0,80178.0,0.04479796]
[1741561724224,0.605,80179.0,80159.0,0.04479796]
[1741561724424,0.3608,80172.0,80160.0,0.2456]
[1741561724626,0.41282801,80171.0,80160.0,0.2456]
[1741561725017,0.41282801,80171.0,80163.0,0.00946047]
[1741561725218,0.3608,80168.0,80163.0,0.00011288]
[1741561725528,0.80864,80167.0,80142.0,0.52064109]
[1741561725731,0.3608,80158.0,80143.0,0.255]
[1741561725927,0.2194,80158.0,80143.0,0.255]
[1741561726330,0.9481,80158.0,80144.0,0.04479796]
[1741561726526,0.3608,80145.0,80142.0,0.51928109]
[1741561726831,0.68332,80144.0,80142.0,0.51928109]
[1741561727021,1.1395,80143.0,80136.0,9.504e-05]
[1741561727229,0.3608,80137.0,80126.0,0.26635686]
[1741561727528,0.6438708,80136.0,80131.0,0.00018716]
[1741561727729,1.1350708,80136.0,80131.0,0.00018716]
[1741561728040,0.2029,80135.0,80131.0,0.00018716]
[1741561728327,0.4259708,80120.0,80111.0,0.257]
[1741561728526,0.84476,80119.0,80111.0,0.257]
[1741561728726,0.17652,80118.0,80112.0,0.2648]
[1741561729119,0.2459,80117.0,80112.0,0.2648]
[1741561729527,0.4973,80117.0,80113.0,0.2525]
[1741561730127,0.17516,80116.0,80113.0,0.2525]
[1741561730330,0.17516,80116.0,80114.0,0.2519]
[1741561730827,0.17516,80116.0,80115.0,0.2525]
[1741561731225,0.17516,80116.0,80107.0,0.36098716]
[1741561731520,0.7216,80113.0,80107.0,0.00018716]
[1741561731725,0.4949,80112.0,80107.0,0.00018716]
[1741561733228,0.2435,80112.0,80107.0,0.00018716]
[1741561733425,0.17516,80116.0,80107.0,0.00018716]
[1741561733823,0.17516,80116.0,80112.0,0.3608]
[1741561734025,0.17516,80116.0,80113.0,0.515]
[1741561734423,0.1314815,80116.0,80113.0,0.515]
[1741561734624,0.42234,80119.0,80114.0,0.12482212]
[1741561734824,0.3786615,80119.0,80114.0,0.12482212]
[1741561735035,0.1757615,80119.0,80115.0,0.515]
[1741561735533,0.1527615,80119.0,80115.0,0.515]
[1741561736426,0.109083,80119.0,80116.0,0.12481745]
[1741561736628,0.0654045,80119.0,80116.0,0.12481745]
[1741561736931,0.0654045,80119.0,80117.0,0.4925]
[1741561737529,0.0654045,80119.0,80113.0,0.3608]
[1741561737835,0.0654045,80119.0,80107.0,0.00018716]
[1741561737836,0.485633,80114.0,80107.0,0.00018716]
[1741561738038,0.3608,80112.0,80107.0,0.00018716]
[1741561738339,0.67212,80111.0,80107.0,0.00018716]
[1741561739326,0.0624253,80103.0,80082.0,0.2472]
[1741561739529,0.4259708,80092.0,80083.0,0.2415]
[1741561739730,0.1268415,80091.0,80090.0,0.1248695]
[1741561739926,0.21956,80119.0,80092.0,0.0624332]
[1741561740232,0.4259708,80130.0,80118.0,0.3608]
[1741561740533,0.4259708,80130.0,80125.0,0.3608]
[1741561741040,0.00010086,80127.0,80125.0,0.3608]
[1741561741740,0.34055928,80130.0,80125.0,0.3700289]
[1741561741934,0.00072,80143.0,80128.0,0.3608]
[1741561742138,0.58036,80157.0,80142.0,0.3608]
[1741561742139,0.21956,80157.0,80142.0,0.3608]
[1741561742326,0.17586695,80157.0,80153.0,0.3608]
[1741561742527,0.11740082,80186.0,80156.0,0.3608]
[1741561742736,0.4259708,80170.0,80168.0,9.253e-05]
[1741561742933,0.00014463,80169.0,80168.0,9.253e-05]
[1741561743132,0.59814545,80169.0,80168.0,9.253e-05]
[1741561743730,0.74814545,80169.0,80144.0,0.3608]
[1741561743933,0.4259708,80154.0,80144.0,0.3608]
[1741561744238,0.67308,80153.0,80144.0,0.3608]
[1741561744544,0.09454545,80152.0,80144.0,0.3608]
[1741561744741,0.00010982,80151.0,80144.0,0.3608]
[1741561744931,0.00010982,80151.0,80136.0,0.01106019]
[1741561744932,0.16892,80150.0,80140.0,0.00018715]
[1741561745131,0.52972,80150.0,80140.0,0.00018715]
[1741561745333,0.3608,80141.0,80140.0,0.00018715]
[1741561745528,0.58036,80141.0,80140.0,0.00018715]
[1741561745929,0.17586695,80141.0,80140.0,0.00018715]
[1741561746239,0.169,80162.0,80147.0,0.1247798]
[1741561746435,0.16892,80166.0,80161.0,0.3608]
[1741561746743,0.5173,80176.0,80161.0,0.3608]
[1741561746744,0.22211189,80176.0,80161.0,0.3608]
[1741561746936,0.22211189,80176.0,80162.0,0.12478085]
[1741561747136,0.00010515,80171.0,80162.0,0.12478085]
[1741561747335,0.00010515,80171.0,80168.0,0.3608]
[1741561747636,0.00010515,80171.0,80161.0,0.36098715]
[1741561747833,0.00010515,80171.0,80161.0,0.00018715]
[1741561748142,0.00010515,80171.0,80169.0,0.12473649]
[1741561748143,0.42607595,80171.0,80169.0,0.12473649]
[1741561748334,0.00010515,80171.0,80161.0,0.36098715]
[1741561748655,0.12519904,80177.0,80169.0,0.3608]
[1741561749033,0.12519904,80177.0,80170.0,0.12474116]
[1741561749233,0.00018715,80177.0,80170.0,0.12474116]
[1741561749433,0.00011379,80176.0,80169.0,0.3608]
[1741561749635,0.00011379,80176.0,80168.0,0.3608]
[1741561749934,0.16812,80193.0,80175.0,0.3608]
[1741561750137,0.5259708,80200.0,80186.0,0.3608]
[1741561750634,0.1,80200.0,80186.0,0.3608]
[1741561750839,0.4259708,80210.0,80186.0,0.3608]
[1741561750840,0.00187153,80228.0,80199.0,0.7216]
[1741561751141,0.00018703,80222.0,80216.0,0.00016181]
[1741561751332,9.516e-05,80221.0,80216.0,0.00016181]
[1741561752137,0.16712,80220.0,80216.0,0.00016181]
[1741561752444,0.8637946,80219.0,80216.0,0.00016181]
[1741561752933,0.1246889,80206.0,80205.0,0.00018703]
[1741561753129,0.58028,80206.0,80205.0,0.00018703]
[1741561753539,0.8549689,80206.0,80205.0,0.00018703]
[1741561753838,0.82482545,80206.0,80184.0,0.3608]
[1741561754141,0.4259708,80197.0,80184.0,0.3608]
[1741561754329,0.3608,80192.0,80184.0,0.3608]
[1741561754532,0.3608,80185.0,80171.0,0.2536326]
[1741561754733,0.4259708,80181.0,80174.0,0.3608]
[1741561755235,0.2424,80180.0,80171.0,0.2536326]
[1741561755531,0.16648,80184.0,80179.0,0.3608]
[1741561755739,0.16648,80184.0,80180.0,0.2443]
[1741561756433,0.2424,80183.0,80180.0,0.2443]
[1741561756635,0.16648,80184.0,80180.0,0.2443]
[1741561757142,0.4922,80183.0,80180.0,0.2443]
[1741561757340,0.16648,80184.0,80180.0,0.2443]
[1741561757732,0.00018703,80186.0,80183.0,0.3608]
[1741561757935,0.00018703,80186.0,80184.0,0.2455]
[1741561758242,0.4259708,80200.0,80184.0,0.2455]
[1741561758443,0.4259708,80200.0,80190.0,0.3608]
[1741561758745,0.40306175,80200.0,80190.0,0.3608]
[1741561759241,0.40306175,80200.0,80198.0,0.3608]
[1741561759444,0.40306175,80200.0,80199.0,0.4906]
[1741561759745,0.00011831,80200.0,80199.0,0.4906]
[1741561759945,0.00011831,80200.0,80199.0,0.61529605]
[1741561760836,0.2595,80233.0,80199.0,0.61529605]
[1741561760837,0.17596803,80206.0,80199.0,0.61529605]
[1741561761036,0.00018691,80208.0,80205.0,0.3608]
[1741561761248,0.00018691,80208.0,80206.0,0.5021]
[1741561761639,0.00018691,80208.0,80207.0,0.12467817]
[1741561761950,0.00032166,80208.0,80207.0,0.12467817]
[1741561762148,0.00032166,80208.0,80207.0,0.62677817]
[1741561762545,0.00032166,80208.0,80207.0,0.5021]
[1741561763147,0.21944,80227.0,80209.0,0.124684]
[1741561763450,0.17580972,80227.0,80223.0,0.3608]
[1741561763637,0.4259708,80230.0,80224.0,0.4929]
[1741561763840,0.5062,80238.0,80224.0,0.4929]
[1741561764035,0.4259708,80240.0,80225.0,0.01737848]
[1741561764244,0.4259708,80240.0,80234.0,0.3608]
[1741561764448,0.24620325,80239.0,80235.0,0.01737848]
[1741561764749,0.24620325,80239.0,80236.0,0.01737848]
[1741561764939,0.2194,80248.0,80237.0,0.26907848]
[1741561765138,0.2194,80248.0,80238.0,0.01737848]
[1741561765341,0.2194,80248.0,80239.0,0.01737848]
[1741561765645,0.2194,80248.0,80240.0,0.01737848]
[1741561765646,0.2461,80247.0,80240.0,0.01737848]
[1741561765851,0.00010006,80246.0,80241.0,0.01737848]
[1741561766150,0.00010006,80246.0,80242.0,0.27457848]
[1741561766341,0.00010006,80246.0,80243.0,0.01737848]
[1741561766537,0.2194,80248.0,80244.0,0.01734708]
[1741561766538,0.19650006,80248.0,80244.0,0.01734708]
[1741561766751,0.19650006,80248.0,80245.0,0.26114708]
[1741561767051,0.19650006,80248.0,80246.0,0.27454708]
[1741561767245,0.4259708,80260.0,80247.0,0.01726369]
[1741561767544,0.0001289,80259.0,80254.0,0.3608]
[1741561767751,0.4259708,80280.0,80255.0,0.501]
[1741561767941,0.5259708,80300.0,80278.0,0.3608]
[1741561768249,0.05639122,80300.0,80298.0,0.3608]
[1741561768547,0.4259708,80320.0,80299.0,0.501]
[1741561768746,0.21936,80325.0,80319.0,0.3608]
[1741561768947,0.21936,80325.0,80320.0,0.4992]
[1741561768948,0.00014482,80324.0,80320.0,0.4992]
[1741561769245,0.00186891,80327.0,80320.0,0.86]
[1741561769448,0.13679206,80328.0,80320.0,0.86]
[1741561769650,0.13679206,80328.0,80327.0,0.3608]
[1741561769852,0.27857686,80347.0,80327.0,0.3608]
[1741561770050,0.20697166,80347.0,80341.0,0.3608]
[1741561770240,0.16351898,80347.0,80342.0,0.28382364]
[1741561770547,0.35402691,80356.0,80343.0,0.02842364]
[1741561770754,0.4259708,80380.0,80355.0,0.7216]
[1741561771052,0.1244477,80362.0,80346.0,0.3608]
[1741561771348,0.7867708,80370.0,80342.0,0.00946994]
[1741561771349,0.3608,80351.0,80342.0,0.00946994]
[1741561771547,0.47857954,80350.0,80338.0,0.01142089]
[1741561771743,9.954e-05,80350.0,80349.0,0.3608]
[1741561771943,0.38246156,80370.0,80349.0,0.3608]
[1741561772254,0.3608,80389.0,80346.0,0.00018665]
[1741561772255,0.2592,80375.0,80366.0,0.3608]
[1741561772440,0.21559122,80375.0,80374.0,0.3608]
[1741561772639,0.17198244,80375.0,80374.0,0.00929333]
[1741561772839,0.17198244,80375.0,80366.0,0.3608]
[1741561772840,0.17198244,80375.0,80366.0,0.370369]
[1741561773050,0.26069182,80374.0,80366.0,0.00975565]
[1741561773248,0.26069182,80374.0,80367.0,0.37824079]
[1741561773550,0.26069182,80374.0,80366.0,0.00975565]
[1741561773748,0.26069182,80374.0,80367.0,0.3608]
[1741561774052,0.26069182,80374.0,80367.0,0.48522453]
[1741561774253,0.3608,80381.0,80367.0,0.3608]
[1741561774450,0.6865708,80380.0,80368.0,0.12442376]
[1741561774853,0.21705237,80380.0,80374.0,0.3608]
[1741561775048,0.16048,80389.0,80374.0,0.3608]
[1741561775243,0.00012659,80388.0,80367.0,0.3608]
[1741561775444,0.00012659,80388.0,80366.0,0.36098665]
[1741561775652,0.4259708,80380.0,80375.0,0.12440673]
[1741561775850,0.2628,80379.0,80366.0,0.00018665]
[1741561776044,0.1606,80378.0,80366.0,0.00018665]
[1741561776247,0.1606,80378.0,80367.0,0.12440673]
[1741561776448,0.2628,80377.0,80371.0,0.3608]
[1741561777156,0.2628,80377.0,80372.0,0.12442144]
[1741561777353,0.00012659,80388.0,80373.0,0.00015785]
[1741561777548,0.00012659,80388.0,80373.0,0.24125785]
[1741561777752,0.4259708,80390.0,80373.0,0.24125785]
[1741561777954,0.4259708,80390.0,80373.0,0.00015785]
[1741561778155,0.2604,80389.0,80374.0,0.12441834]
[1741561778358,0.3608,80382.0,80373.0,0.00015785]
[1741561778562,0.42084,80381.0,80373.0,0.00015785]
[1741561778855,0.00014364,80380.0,80373.0,0.00015785]
[1741561779058,0.3608,80379.0,80373.0,0.00015785]
[1741561779246,0.2179,80378.0,80340.0,0.43860032]
[1741561779452,0.2179,80378.0,80334.0,0.3608]
[1741561779453,0.3608,80356.0,80354.0,0.36264988]
[1741561779656,1.29928,80355.0,80347.0,0.43860032]
[1741561780159,0.00012389,80354.0,80347.0,0.43860032]
[1741561780755,0.3608,80350.0,80342.0,0.00018665]
[1741561780956,0.2179,80349.0,80342.0,0.00018665]
[1741561781959,0.42325075,80350.0,80342.0,0.00018665]
[1741561782151,0.3608,80343.0,80325.0,0.00915929]
[1741561782356,0.3608,80343.0,80310.0,0.3608]
[1741561782357,0.21803179,80342.0,80310.0,0.3608]
[1741561782552,0.3608,80319.0,80310.0,0.3608]
[1741561782753,0.37784,80318.0,80310.0,0.3608]
[1741561782953,0.37784,80318.0,80276.0,0.3608]
[1741561782954,0.3608,80311.0,80276.0,0.3608]
[1741561783158,0.4259708,80288.0,80279.0,0.02818454]
[1741561783465,0.37769461,80287.0,80286.0,0.00018678]
[1741561783655,0.21917461,80287.0,80286.0,0.00018678]
[1741561783858,0.37753461,80287.0,80286.0,0.00018678]
[1741561784156,0.33398996,80287.0,80286.0,0.12475138]
[1741561784355,0.13208531,80287.0,80286.0,0.24930997]
[1741561784553,0.00018678,80303.0,80293.0,0.0622764]
[1741561784757,0.21908,80314.0,80302.0,0.3608]
[1741561784960,0.92012,80341.0,80313.0,0.3608]
[1741561784961,0.21908,80334.0,80313.0,0.3608]
[1741561785164,0.4259708,80330.0,80317.0,0.3608]
[1741561785360,0.21908,80334.0,80314.0,0.5297]
[1741561785553,0.17565085,80334.0,80327.0,0.3608]
[1741561785753,0.17565085,80334.0,80326.0,0.00934405]
[1741561785962,0.4988,80333.0,80322.0,0.00018678]
[1741561786152,0.3608,80331.0,80322.0,0.00018678]
[1741561786353,0.3608,80324.0,80309.0,0.00911917]
[1741561786560,0.4259708,80319.0,80307.0,9.225e-05]
[1741561786760,0.4988,80318.0,80307.0,9.225e-05]
[1741561787267,0.4758,80318.0,80307.0,9.225e-05]
[1741561787471,0.3608,80317.0,80307.0,9.225e-05]
[1741561787859,0.3608,80309.0,80307.0,9.225e-05]
[1741561788165,0.4259708,80319.0,80307.0,0.36089225]
[1741561788354,0.00018678,80321.0,80308.0,0.37411361]
[1741561788965,0.4259708,80320.0,80308.0,0.37411361]
[1741561789162,0.6743708,80320.0,80308.0,0.2496]
[1741561789562,0.15656,80319.0,80308.0,0.2496]
[1741561790071,0.40496,80319.0,80308.0,0.2496]
[1741561790455,0.00018678,80321.0,80308.0,0.2496]
[1741561790456,0.00018678,80321.0,80315.0,0.3608]
[1741561790661,0.17565085,80334.0,80316.0,0.4981]
[1741561790855,0.4259708,80340.0,80333.0,0.3608]
[1741561791064,0.21908,80353.0,80333.0,0.3608]
[1741561791065,0.17550672,80353.0,80334.0,0.4981]
[1741561791262,0.17550672,80353.0,80342.0,0.3608]
[1741561791458,0.17550672,80353.0,80343.0,0.4981]
[1741561791666,0.00010716,80352.0,80317.0,0.3608]
[1741561791958,0.4259708,80340.0,80326.0,0.00018678]
[1741561792159,0.66116,80339.0,80326.0,0.00018678]
[1741561792855,0.3608,80336.0,80326.0,0.00018678]
[1741561793057,0.505,80335.0,80326.0,0.00018678]
[1741561793462,0.9902888,80335.0,80326.0,0.00018678]
[1741561793766,0.9902888,80335.0,80307.0,9.225e-05]
[1741561793767,0.0622533,80324.0,80307.0,9.225e-05]
[1741561794065,0.4259708,80317.0,80307.0,9.225e-05]
[1741561794265,0.5004,80316.0,80307.0,9.225e-05]
[1741561794568,0.124528,80310.0,80307.0,9.225e-05]
[1741561794758,0.6554,80309.0,80307.0,9.225e-05]
[1741561795158,0.000104,80308.0,80307.0,9.225e-05]
[1741561795568,0.500504,80308.0,80307.0,9.225e-05]
[1741561796463,0.154264,80308.0,80307.0,9.225e-05]
[1741561797261,0.515064,80308.0,80307.0,9.225e-05]
[1741561797459,0.665064,80308.0,80300.0,0.00018678]
[1741561797664,0.3608,80301.0,80300.0,0.00018678]
[1741561797967,1.281,80301.0,80300.0,0.00018678]
[1741561798164,0.000104,80308.0,80300.0,0.00018678]
[1741561798355,0.000104,80308.0,80300.0,0.48638678]
[1741561798557,0.15368,80313.0,80304.0,0.3608]
[1741561798757,0.15372,80321.0,80312.0,0.1245243]
[1741561799058,0.00186903,80325.0,80314.0,0.3608]
[1741561799363,0.17548643,80323.0,80322.0,0.3608]
[1741561799566,0.00010981,80326.0,80323.0,0.062253]
[1741561799756,0.15652643,80339.0,80325.0,0.3608]
[1741561799956,0.11296019,80339.0,80325.0,0.3608]
[1741561800369,0.2529,80338.0,80325.0,0.3608]
[1741561800766,0.3608,80328.0,80324.0,0.00018678]
[1741561800967,0.11011376,80327.0,80325.0,0.3608]
[1741561801174,0.11011376,80327.0,80326.0,0.255]
[1741561801365,0.3608,80332.0,80326.0,0.255]
[1741561801672,0.64912,80331.0,80325.0,0.3608]
[1741561801858,0.64912,80331.0,80324.0,0.00018678]
[1741561802063,0.15392,80331.0,80324.0,0.00018678]
[1741561802266,0.15392,80333.0,80324.0,0.00018678]
[1741561802465,0.2529,80332.0,80324.0,0.00018678]
[1741561802660,0.15392,80333.0,80331.0,0.3608]
[1741561802861,0.00014873,80337.0,80332.0,0.2629]
[1741561803061,0.00018568,80340.0,80332.0,0.2629]
[1741561803062,0.00018568,80340.0,80332.0,0.7764]
[1741561803261,0.00018568,80340.0,80339.0,0.3608]
[1741561803464,0.21908,80355.0,80339.0,0.3608]
[1741561803767,0.3608,80393.0,80339.0,0.3608]
[1741561803768,0.21908,80375.0,80368.0,0.1244368]